[Event "10th Cesme Open-B 2024"]
[Site "Cesme"]
[Date "2024.06.25"]
[Round "3"]
[White "Varyemez, Ali"]
[Black "Karaca, Mert"]
[Result "1/2-1/2"]
[ECO "E11"]
[WhiteElo "1889"]
[BlackElo "1732"]
[Annotator "NA RC"]
[PlyCount "57"]
[EventDate "2024.06.23"]
[EventType "swiss"]
[EventCountry "TUR"]
[SourceTitle "playchess.com"]
[Source "ChessBase"]
[SourceQuality "1"]
[TimeControl "5400+30"]

1. d4 {[%emt 0:00:00]} d5 {[%emt 0:00:00]} 2. c4 {[%emt 0:00:00]} e6 {[%emt 0:00:00]} 3. Nf3 {[%emt 0:00:00]} Nf6 {[%emt 0:00:00]} 4. g3 {[%emt 0:00:30]} Bb4+ {[%emt 0:00:30]} 5. Bd2 {[%emt 0:00:30]} Be7 {[%emt 0:00:30]} 6. Bg2 {[%emt 0:00:30]} O-O {[%emt 0:00:30]} 7. O-O {[%emt 0:00:30]} c6 {[%emt 0:00:30]} 8. Qc2 {[%emt 0:00:30]} Nbd7 {[%emt 0:00:30]} 9. Bf4 {[%emt 0:00:30]} b6 {[%emt 0:01:30] E11: Bogo-Indian.} 10. Nbd2 {[%emt 0:04:30] is recently more successful than 10.Rd1.} Nh5 {[%emt 0:12:30]} 11. e4 {[%emt 0:13:30]} Nxf4 {[%emt 0:25:30]} 12. gxf4 {[%emt 0:00:30]} dxe4 {[%emt 0:00:30]} 13. Ne5 $146 {[%emt 0:10:30]} ({Predecessor:} 13. Nxe4 Bb7 14. c5 Nf6 15. Rfd1 Qc7 16. b4 {1-0 Lutz,I (2022)-Hosseinzadeh,N (2215) Titled Tuesday intern op 12th Jul Late blitz 2022 (1)}) 13... Nxe5 {[%emt 0:15:30]} 14. dxe5 {[%emt 0:00:30]} f5 {[%emt 0:00:30]} 15. exf6 {[%emt 0:00:30]} Rxf6 {[%emt 0:00:30]} 16. Bxe4 {[%emt 0:00:30]} Rxf4 {[%emt 0:00:30]} 17. Bxh7+ {[%emt 0:00:30]} Kh8 {[%emt 0:00:30]} 18. Be4 {[%emt 0:19:30]} Bd6 {[%emt 0:26:35]} 19. Bg2 {[%emt 0:22:30]} Qh4 {[%emt 0:01:53]} 20. h3 {[%emt 0:01:30]} e5 {[%emt 0:02:58]} 21. Qd3 {[%emt 0:03:30]} Qh6 {[%emt 0:05:42]} (21... Bc5 $19 22. Kh1 Bf5 (22... Rxf2 23. Rxf2 Bxf2 24. Rf1 $15) (22... Bxf2 23. Nf3 $11)) 22. Ne4 {[%emt 0:08:21]} Be7 $15 {[%emt 0:00:36]} ({Black should try} 22... Bc7 $17 23. Rae1 Bf5) 23. Rae1 {[%emt 0:02:30]} Be6 {[%emt 0:01:39]} 24. Qc3 {[%emt 0:02:11]} Bf6 {[%emt 0:01:31]} 25. Re3 {[%emt 0:01:58]} Rf8 {[%emt 0:01:07]} 26. b3 {[%emt 0:01:08]} c5 {[%emt 0:00:50]} 27. a3 {[%emt 0:00:38]} Qh5 {[%emt 0:00:30]} 28. b4 {[%emt 0:01:26]} Bh4 {[%emt 0:00:00]} 29. a4 {[%emt 0:02:34]} 1/2-1/2

[Event "10th Cesme Open-B 2024"]
[Site "Cesme"]
[Date "2024.06.25"]
[Round "3"]
[White "Gedik, Kerem Bilge"]
[Black "Turgut, Hakan"]
[Result "0-1"]
[ECO "B10"]
[WhiteElo "1857"]
[BlackElo "1979"]
[Annotator "RC"]
[PlyCount "104"]
[EventDate "2024.06.23"]
[EventType "swiss"]
[EventCountry "TUR"]
[SourceTitle "playchess.com"]
[Source "ChessBase"]
[SourceQuality "1"]
[TimeControl "5400+30"]

1. e4 {[%emt 0:01:00]} c6 {[%emt 0:01:00]} 2. c4 {[%emt 0:00:30]} d5 {[%emt 0:00:30]} 3. exd5 {[%emt 0:00:00]} cxd5 {[%emt 0:00:00]} 4. cxd5 {[%emt 0:00:00]} Nf6 {[%emt 0:01:00]} 5. Nc3 {[%emt 0:00:30]} Nxd5 {[%emt 0:00:30]} 6. Nf3 {[%emt 0:00:00]} Nxc3 {[%emt 0:00:00]} 7. bxc3 {[%emt 0:02:00]} g6 {[%emt 0:00:00]} 8. d4 {[%emt 0:00:30]} Bg7 {[%emt 0:00:00]} 9. Bd3 {[%emt 0:00:30]} O-O {[%emt 0:00:00]} 10. O-O {[%emt 0:00:30]} Nc6 {[%emt 0:03:30]} 11. Re1 {[%emt 0:01:30]} Qc7 {[%emt 0:04:30]} 12. Bg5 {[%emt 0:07:30]} Bg4 {[%emt 0:12:30]} 13. Be4 {[%emt 0:15:30]} Na5 {[%emt 0:10:30]} 14. h3 {[%emt 0:06:30]} Be6 {[%emt 0:01:30]} 15. Qa4 {[%emt 0:04:30]} Nc4 {[%emt 0:16:30]} 16. Rab1 {[%emt 0:08:30]} Nb6 {[%emt 0:00:30]} 17. Qb4 {[%emt 0:04:30]} Rfe8 {[%emt 0:04:30]} 18. a4 {[%emt 0:03:30]} Rac8 {[%emt 0:06:30]} 19. Rbc1 {[%emt 0:22:30]} Qd7 {[%emt 0:08:30]} 20. a5 {[%emt 0:03:25]} Nd5 {[%emt 0:00:30]} 21. Qb2 {[%emt 0:01:00]} b5 {[%emt 0:05:30]} 22. axb6 {[%emt 0:02:30]} Nxb6 {[%emt 0:00:30]} 23. Qb4 {[%emt 0:02:10]} Rc4 {[%emt 0:01:30]} 24. Qb2 {[%emt 0:02:43]} Rec8 {[%emt 0:02:30]} 25. Bd2 {[%emt 0:02:12]} R4c7 {[%emt 0:05:02]} 26. Qb4 {[%emt 0:01:40]} Nc4 {[%emt 0:01:42]} 27. Bf4 {[%emt 0:01:13]} a5 {[%emt 0:00:16]} 28. Qb1 {[%emt 0:00:34]} Ra7 {[%emt 0:00:49]} 29. Nd2 {[%emt 0:00:59]} Nxd2 {[%emt 0:02:26]} 30. Bxd2 {[%emt 0:00:30]} a4 {[%emt 0:02:28]} 31. Qb4 {[%emt 0:01:34]} a3 {[%emt 0:05:11]} 32. Ra1 {[%emt 0:01:18]} a2 {[%emt 0:00:53]} 33. Bc2 {[%emt 0:01:40]} Rb7 {[%emt 0:00:15]} 34. Qa3 {[%emt 0:01:07]} Bc4 {[%emt 0:02:30]} 35. Bf4 {[%emt 0:01:12]} Bf8 {[%emt 0:00:45]} 36. Qc1 {[%emt 0:00:53]} Bd5 {[%emt 0:01:08]} 37. Be4 {[%emt 0:01:12]} Bxe4 {[%emt 0:01:11]} 38. Rxe4 {[%emt 0:00:30]} Qf5 {[%emt 0:00:05]} 39. f3 {[%emt 0:00:00]} Qa5 {[%emt 0:01:32]} 40. Qc2 {[%emt 0:00:43]} Ra8 {[%emt 0:00:47]} 41. Re2 {[%emt 0:00:13]} Rba7 {[%emt 0:00:31]} 42. c4 {[%emt 0:00:13]} Bg7 {[%emt 0:00:30]} 43. Be3 {[%emt 0:00:16]} Qb4 {[%emt 0:00:15]} 44. Kh1 {[%emt 0:00:57]} Ra3 {[%emt 0:00:20]} 45. Bf2 {[%emt 0:00:40]} e6 {[%emt 0:01:05]} 46. Rd2 {[%emt 0:00:20]} Bh6 {[%emt 0:00:43]} 47. Re2 {[%emt 0:00:30]} Bg7 {[%emt 0:00:30]} 48. Rd2 {[%emt 0:00:30]} Bh6 {[%emt 0:00:30]} 49. Re2 {[%emt 0:00:00]} Rc3 {[%emt 0:00:00]} 50. Qd1 {[%emt 0:01:11]} Qxc4 {[%emt 0:00:00]} 51. Qf1 {[%emt 0:00:30]} Rc1 {[%emt 0:00:29]} 52. Re1 {[%emt 0:00:30]} Qxf1+ {[%emt 0:00:30]} 0-1

[Event "10th Cesme Open-B 2024"]
[Site "Cesme"]
[Date "2024.06.25"]
[Round "3"]
[White "Arslan, Levent"]
[Black "Turan, Asim"]
[Result "1/2-1/2"]
[ECO "B11"]
[WhiteElo "1803"]
[BlackElo "1970"]
[Annotator "RC"]
[PlyCount "104"]
[EventDate "2024.06.23"]
[EventType "swiss"]
[EventCountry "TUR"]
[SourceTitle "playchess.com"]
[Source "ChessBase"]
[SourceQuality "1"]
[TimeControl "5400+30"]

1. e4 c6 2. Nc3 d5 3. Nf3 Bg4 4. h3 Bh5 5. exd5 cxd5 6. Bb5+ Nc6 7. g4 Bg6 8. Ne5 Rc8 9. d4 e6 10. Qe2 Bb4 11. h4 Qa5 12. Bd2 Nge7 13. a3 h5 14. Rd1 Bxc3 15. Bxc3 Qc7 16. Bxc6+ bxc6 17. Bb4 hxg4 18. Bxe7 Qxe7 19. Nxg6 fxg6 20. Rd3 O-O 21. Rg1 Rf4 22. Rxg4 Rcf8 23. Rxg6 Qxh4 24. Qxe6+ R8f7 25. Kd2 Qxf2+ {[%emt 1:27:53]} 26. Kc3 {[%emt 1:42:59]} c5 {[%emt 0:00:30]} 27. Qxd5 {[%emt 0:00:24]} cxd4+ {[%emt 0:07:50]} 28. Kb3 {[%emt 0:00:24]} R4f5 {[%emt 0:03:01]} 29. Qa8+ {[%emt 0:00:34]} Kh7 {[%emt 0:00:14]} 30. Rg2 {[%emt 0:00:30]} Qh4 {[%emt 0:01:47]} 31. Rgg3 {[%emt 0:00:27]} Rh5 32. Qg2 Qf6 33. Qe4+ {[%emt 0:00:51]} g6 {[%emt 0:02:19]} 34. Rh3 {[%emt 0:00:45]} Rxh3 {[%emt 0:01:16]} 35. Rxh3+ {[%emt 0:00:30]} Kg7 {[%emt 0:00:00]} 36. Rd3 {[%emt 0:00:20]} Rd7 {[%emt 0:00:04]} 37. Ka2 {[%emt 0:00:25]} a5 {[%emt 0:00:00]} 38. a4 {[%emt 0:00:26]} Qf5 {[%emt 0:03:04]} 39. Qc6 {[%emt 0:01:01]} Qf7+ {[%emt 0:00:11]} 40. b3 {[%emt 0:00:31]} Rc7 {[%emt 0:00:05]} 41. Qg2 {[%emt 0:00:09]} Qf5 42. Kb2 Qe5 43. Qg4 g5 44. Qxd4 Qxd4+ 45. Rxd4 Kf6 46. c3 Rg7 47. Rg4 Kf5 48. Rg1 g4 49. b4 {[%emt 0:02:25]} axb4 {[%emt 0:04:38]} 50. cxb4 {[%emt 0:00:30]} g3 {[%emt 0:00:30]} 51. b5 {[%emt 0:00:00]} Ke4 {[%emt 0:00:00]} 52. Kc3 {[%emt 0:00:23]} Kd5 {[%emt 0:00:00]} 1/2-1/2

[Event "10th Cesme Open-B 2024"]
[Site "Cesme"]
[Date "2024.06.25"]
[Round "3"]
[White "Buyuk, Elvin Esma"]
[Black "Masiya, Mfundo"]
[Result "0-1"]
[ECO "E60"]
[WhiteElo "1717"]
[BlackElo "1971"]
[Annotator "RC"]
[PlyCount "102"]
[EventDate "2024.06.23"]
[EventType "swiss"]
[EventCountry "TUR"]
[SourceTitle "playchess.com"]
[Source "ChessBase"]
[SourceQuality "1"]
[TimeControl "5400+30"]

1. d4 {[%emt 0:01:00]} Nf6 {[%emt 0:03:00]} 2. Nf3 {[%emt 0:00:30]} g6 {[%emt 0:00:30]} 3. c4 {[%emt 0:00:30]} Bg7 {[%emt 0:00:30]} 4. e3 {[%emt 0:00:30]} O-O {[%emt 0:00:30]} 5. Be2 {[%emt 0:00:00]} d5 {[%emt 0:00:00]} 6. O-O {[%emt 0:00:00]} dxc4 {[%emt 0:03:00]} 7. Bxc4 {[%emt 0:00:30]} c5 {[%emt 0:00:30]} 8. Nc3 {[%emt 0:10:30]} a6 {[%emt 0:07:30]} 9. dxc5 {[%emt 0:09:30]} Qa5 {[%emt 0:05:30]} 10. Qb3 {[%emt 0:09:30]} Nbd7 {[%emt 0:08:30]} 11. Ng5 {[%emt 0:16:30]} Ne5 {[%emt 0:06:30]} 12. f4 {[%emt 0:04:30]} Nxc4 {[%emt 0:03:30]} 13. Qxc4 {[%emt 0:00:30]} h6 {[%emt 0:03:30]} 14. Nge4 {[%emt 0:08:30]} Nxe4 {[%emt 0:05:30]} 15. Nxe4 {[%emt 0:00:30]} Be6 {[%emt 0:00:00]} 16. Qc2 {[%emt 0:04:30]} Bf5 {[%emt 0:01:00]} 17. Qd2 {[%emt 0:07:30]} Qc7 {[%emt 0:01:30]} 18. Ng3 {[%emt 0:03:30]} Qxc5 {[%emt 0:01:30]} 19. Nxf5 {[%emt 0:02:26]} gxf5 {[%emt 0:00:30]} 20. b4 {[%emt 0:02:02]} Qc4 {[%emt 0:05:30]} 21. Rb1 {[%emt 0:04:58]} Rfd8 {[%emt 0:02:30]} 22. Qf2 {[%emt 0:04:16]} Rd3 {[%emt 0:04:30]} 23. Bb2 {[%emt 0:02:34]} Qe4 {[%emt 0:05:30]} 24. Rfe1 {[%emt 0:04:24]} Bxb2 {[%emt 0:03:30]} 25. Rxb2 {[%emt 0:00:10]} Rc8 {[%emt 0:01:30]} 26. Qf3 {[%emt 0:02:17]} Rc4 {[%emt 0:07:30]} 27. Qxe4 {[%emt 0:00:30]} Rxe4 {[%emt 0:00:00]} 28. Kf2 {[%emt 0:00:33]} b5 {[%emt 0:00:00]} 29. h3 {[%emt 0:00:49]} h5 {[%emt 0:03:00]} 30. g3 {[%emt 0:00:07]} f6 {[%emt 0:01:08]} 31. Kf3 {[%emt 0:00:30]} e5 {[%emt 0:02:34]} 32. Kf2 {[%emt 0:01:35]} Kf7 {[%emt 0:04:42]} 33. Kf3 {[%emt 0:00:33]} Ke6 {[%emt 0:01:03]} 34. Kf2 {[%emt 0:00:36]} Kd5 {[%emt 0:01:13]} 35. Kf3 {[%emt 0:00:17]} Rc4 {[%emt 0:02:55]} 36. Ke2 {[%emt 0:00:44]} Ke4 {[%emt 0:01:21]} 37. Kf2 {[%emt 0:00:27]} Rcc3 {[%emt 0:00:54]} 38. Rbe2 {[%emt 0:00:01]} Ra3 {[%emt 0:00:00]} 39. fxe5 {[%emt 0:01:17]} fxe5 {[%emt 0:00:24]} 40. Rc2 {[%emt 0:00:30]} Rxe3 {[%emt 0:00:30]} 41. Rxe3+ {[%emt 0:00:30]} Rxe3 {[%emt 0:00:30]} 42. a4 {[%emt 0:00:30]} Rf3+ {[%emt 0:00:30]} 43. Kg2 {[%emt 0:00:30]} Rb3 {[%emt 0:00:30]} 44. axb5 {[%emt 0:00:30]} axb5 {[%emt 0:00:30]} 45. Re2+ {[%emt 0:00:30]} Kd5 {[%emt 0:00:30]} 46. Rf2 {[%emt 0:00:30]} Ke6 {[%emt 0:00:30]} 47. Rc2 {[%emt 0:00:30]} Rxb4 {[%emt 0:00:30]} 48. Rc6+ {[%emt 0:00:30]} Kd5 {[%emt 0:00:30]} 49. Rh6 {[%emt 0:00:30]} Ke4 {[%emt 0:00:30]} 50. Rxh5 {[%emt 0:00:30]} Rb2+ {[%emt 0:00:30]} 51. Kf1 {[%emt 0:00:30]} b4 {[%emt 0:00:30]} 0-1